[Event "XV Closed IM BCC 2021"]
[Site "Barcelona"]
[Date "2021.05.04"]
[Round "2.1"]
[White "Nottola, Adrien"]
[Black "Garcia Ramos, Daniel"]
[Result "1-0"]
[ECO "B12"]
[WhiteElo "2101"]
[BlackElo "2436"]
[Annotator "NA"]
[PlyCount "55"]
[EventDate "2021.05.03"]
[EventType "tourn"]
[EventCountry "ESP"]
[SourceTitle "playchess.com"]
[Source "ChessBase"]
[SourceQuality "1"]
[TimeControl "5400+30"]

1. e4 {[%emt 0:00:00]} c6 {[%emt 0:04:18]} 2. d4 {[%emt 0:00:00]} d5 {[%emt 0:00:05]} 3. f3 {[%emt 0:00:03]} dxe4 {[%emt 0:02:59]} 4. fxe4 {[%emt 0:00:02]} e5 {[%emt 0:00:10]} 5. Nf3 {[%emt 0:00:13]} Bg4 {[%emt 0:00:25]} 6. c3 {[%emt 0:00:46]} Nd7 {[%emt 0:03:33]} 7. Bd3 {[%emt 0:00:28]} Ngf6 {[%emt 0:00:51]} 8. O-O {[%emt 0:00:35]} Bd6 {[%emt 0:08:56]} 9. Na3 {[%emt 0:00:09]} Qc7 {[%emt 0:07:50]} 10. Nc4 {[%emt 0:17:47]} O-O {[%emt 0:14:43]} 11. Qe1 {[%emt 0:20:51]} b5 {[%emt 0:29:01]} 12. Nxd6 {[%emt 0:08:08]} Qxd6 {[%emt 0:00:02]} 13. Qg3 {[%emt 0:01:57]} Rfe8 {[%emt 0:02:07]} 14. Nxe5 {[%emt 0:14:17]} Nxe5 {[%emt 0:00:49]} 15. Bf4 {[%emt 0:00:45]} Nh5 {[%emt 0:04:27]} 16. Qxg4 {[%emt 0:04:52]} Qxd4+ {[%emt 0:00:10]} 17. cxd4 {[%emt 0:00:08]} Nxg4 {[%emt 0:00:05]} 18. Bd6 {[%emt 0:04:46]} Rad8 {[%emt 0:03:26]} 19. e5 {[%emt 0:01:03]} Nhf6 {[%emt 0:03:19]} 20. Rac1 {[%emt 0:02:05]} Nd5 {[%emt 0:04:16]} 21. Rxc6 {[%emt 0:00:52]} Nb4 {[%emt 0:02:22]} 22. Rc7 {[%emt 0:15:27]} Nxd3 {[%emt 0:00:18]} 23. Rfxf7 {[%emt 0:00:02]} Nf6 {[%emt 0:00:30]} 24. Rxg7+ {[%emt 0:00:40]} Kh8 {[%emt 0:00:01]} 25. h3 {[%emt 0:05:30]} Rxd6 {[%emt 0:05:18]} 26. exd6 {[%emt 0:00:00]} Rd8 {[%emt 0:00:01]} 27. Rxa7 {[%emt 0:00:20]} Rxd6 {[%emt 0:00:28]} 28. Rg3 {[%emt 0:00:08]} 1-0

[Event "XV Closed IM BCC 2021"]
[Site "Barcelona"]
[Date "2021.05.04"]
[Round "2.2"]
[White "Hernandez, Cristian Andres"]
[Black "Alcala Gonzalez, Cesar"]
[Result "1-0"]
[ECO "A06"]
[WhiteElo "2357"]
[BlackElo "2110"]
[Annotator "NA"]
[PlyCount "67"]
[EventDate "2021.05.03"]
[EventType "tourn"]
[EventCountry "ESP"]
[SourceTitle "playchess.com"]
[Source "ChessBase"]
[SourceQuality "1"]
[TimeControl "5400+30"]

1. Nf3 d5 {[%emt 0:00:00]} 2. g3 {[%emt 0:02:18]} Nf6 {[%emt 0:00:10]} 3. Bg2 {[%emt 0:00:53]} Bg4 {[%emt 0:00:16]} 4. Ne5 {[%emt 0:01:49]} Bf5 {[%emt 0:10:15]} 5. c4 {[%emt 0:00:56]} Be4 {[%emt 0:07:46]} 6. f3 {[%emt 0:08:12]} Bxb1 {[%emt 0:00:00]} 7. Rxb1 {[%emt 0:00:11]} c6 {[%emt 0:01:58]} 8. O-O {[%emt 0:16:31]} e6 {[%emt 0:06:04]} 9. d4 {[%emt 0:01:42]} Nbd7 {[%emt 0:01:35]} 10. f4 {[%emt 0:03:55]} Be7 {[%emt 0:04:32]} 11. c5 {[%emt 0:06:50]} Ne4 {[%emt 0:10:09]} 12. Bxe4 {[%emt 0:12:23]} dxe4 {[%emt 0:00:02]} 13. b4 {[%emt 0:00:42]} Nxe5 {[%emt 0:12:11]} 14. dxe5 {[%emt 0:06:21]} a5 {[%emt 0:12:06]} 15. Be3 {[%emt 0:02:02]} O-O {[%emt 0:05:44]} 16. Qxd8 {[%emt 0:10:58]} Rfxd8 {[%emt 0:00:43]} 17. b5 {[%emt 0:00:12]} Kf8 {[%emt 0:12:44]} 18. bxc6 {[%emt 0:00:13]} bxc6 {[%emt 0:00:02]} 19. Rb6 {[%emt 0:00:31]} Rdc8 {[%emt 0:00:12]} 20. Rd1 {[%emt 0:05:08]} Ke8 {[%emt 0:02:08]} 21. a4 {[%emt 0:02:24]} Bd8 {[%emt 0:00:44]} 22. Rb7 {[%emt 0:02:17]} Bc7 {[%emt 0:01:46]} 23. Kf2 {[%emt 0:02:09]} f5 {[%emt 0:01:26]} 24. Rdb1 {[%emt 0:04:30]} h5 {[%emt 0:02:49]} 25. Bd2 {[%emt 0:01:11]} Kd8 {[%emt 0:00:59]} 26. Bc3 {[%emt 0:01:03]} g6 {[%emt 0:00:49]} 27. Rd1+ {[%emt 0:00:34]} Ke8 {[%emt 0:00:27]} 28. Rd6 {[%emt 0:00:46]} Bxd6 {[%emt 0:00:23]} 29. exd6 {[%emt 0:00:04]} Kf8 {[%emt 0:00:38]} 30. Bf6 {[%emt 0:01:58]} Re8 {[%emt 0:01:43]} 31. Ke3 {[%emt 0:01:06]} Kg8 {[%emt 0:01:14]} 32. Kd4 {[%emt 0:00:58]} Rf8 {[%emt 0:00:36]} 33. Rg7+ {[%emt 0:01:22]} Kh8 {[%emt 0:00:05]} 34. Rf7+ {[%emt 0:00:05]} 1-0

[Event "XV Closed IM BCC 2021"]
[Site "Barcelona"]
[Date "2021.05.04"]
[Round "2.3"]
[White "Valenzuela Gomez, Fernando"]
[Black "Papadiamandis, Elliot"]
[Result "0-1"]
[ECO "A05"]
[WhiteElo "2382"]
[BlackElo "2292"]
[Annotator "NA"]
[PlyCount "82"]
[EventDate "2021.05.03"]
[EventType "tourn"]
[EventCountry "ESP"]
[SourceTitle "playchess.com"]
[Source "ChessBase"]
[SourceQuality "1"]
[TimeControl "5400+30"]

1. Nf3 {[%emt 0:12:34]} Nf6 {[%emt 0:00:00]} 2. c4 {[%emt 0:00:10]} g6 {[%emt 0:00:09]} 3. Nc3 {[%emt 0:00:27]} Bg7 {[%emt 0:00:44]} 4. e4 {[%emt 0:01:01]} e5 {[%emt 0:00:21]} 5. Nxe5 {[%emt 0:00:31]} O-O {[%emt 0:01:07]} 6. d3 {[%emt 0:00:32]} Re8 {[%emt 0:01:43]} 7. f4 {[%emt 0:04:20]} d6 {[%emt 0:12:11]} 8. Nf3 {[%emt 0:01:00]} d5 {[%emt 0:06:08]} 9. cxd5 {[%emt 0:07:53]} Nxd5 {[%emt 0:01:30]} 10. Bd2 {[%emt 0:05:57]} Nb4 {[%emt 0:07:31]} 11. Be3 {[%emt 0:04:43]} Bg4 {[%emt 0:04:03]} 12. Qd2 {[%emt 0:04:21]} N8c6 {[%emt 0:13:03]} 13. a3 {[%emt 0:11:47]} Na6 {[%emt 0:04:31]} 14. Ne5 {[%emt 0:06:12]} Rxe5 {[%emt 0:12:53]} 15. fxe5 {[%emt 0:00:59]} Nd4 {[%emt 0:00:22]} 16. Bxd4 {[%emt 0:06:35]} Qxd4 {[%emt 0:01:49]} 17. Qf2 {[%emt 0:00:33]} Qxe5 {[%emt 0:02:59]} 18. d4 {[%emt 0:04:03]} Qxd4 {[%emt 0:04:10]} 19. Qxd4 {[%emt 0:00:21]} Bxd4 {[%emt 0:00:07]} 20. h3 {[%emt 0:01:52]} Be6 {[%emt 0:00:32]} 21. Bxa6 {[%emt 0:00:35]} bxa6 {[%emt 0:00:51]} 22. O-O-O {[%emt 0:02:58]} Be5 {[%emt 0:00:38]} 23. Nd5 {[%emt 0:02:53]} Rb8 {[%emt 0:02:22]} 24. b4 {[%emt 0:04:11]} c6 {[%emt 0:05:54]} 25. Ne3 {[%emt 0:00:09]} a5 {[%emt 0:01:03]} 26. bxa5 {[%emt 0:03:13]} Rb3 {[%emt 0:00:53]} 27. Ng4 {[%emt 0:02:27]} Bf4+ {[%emt 0:05:03]} 28. Kc2 {[%emt 0:00:06]} Rxa3 {[%emt 0:00:06]} 29. Ra1 {[%emt 0:01:24]} Rg3 {[%emt 0:00:05]} 30. Rhf1 {[%emt 0:02:29]} Bc7 {[%emt 0:04:08]} 31. Rf2 {[%emt 0:01:15]} h5 {[%emt 0:01:08]} 32. Nf6+ {[%emt 0:01:57]} Kf8 {[%emt 0:00:01]} 33. h4 {[%emt 0:00:13]} Be5 {[%emt 0:01:13]} 34. Rb1 {[%emt 0:01:07]} Ra3 {[%emt 0:01:15]} 35. Kd1 {[%emt 0:01:15]} Rxa5 {[%emt 0:02:05]} 36. Nh7+ {[%emt 0:00:46]} Kg8 {[%emt 0:00:42]} 37. Ng5 {[%emt 0:00:22]} Bg3 {[%emt 0:01:11]} 38. Rf1 {[%emt 0:01:27]} Bc4 {[%emt 0:01:01]} 39. Rf3 {[%emt 0:00:14]} Bxh4 {[%emt 0:00:05]} 40. Rb4 {[%emt 0:03:10]} Ba2 {[%emt 0:01:53]} 41. Nxf7 {[%emt 0:01:54]} Bxf7 {[%emt 0:00:07]} 0-1

[Event "XV Closed IM BCC 2021"]
[Site "Barcelona"]
[Date "2021.05.04"]
[Round "2.4"]
[White "Perez Mitjans, Orelvis"]
[Black "Lucas, Arthur"]
[Result "1-0"]
[ECO "B00"]
[WhiteElo "2412"]
[BlackElo "2310"]
[Annotator "NA"]
[PlyCount "103"]
[EventDate "2021.05.03"]
[EventType "tourn"]
[EventCountry "ESP"]
[SourceTitle "playchess.com"]
[Source "ChessBase"]
[SourceQuality "1"]
[TimeControl "5400+30"]

1. e4 Nc6 2. d4 d6 3. f4 e5 4. d5 Nce7 5. Nf3 exf4 6. Bxf4 Ng6 7. Be3 Nf6 8. Nc3 Be7 9. Qd2 O-O 10. O-O-O Ng4 11. Bg1 N4e5 12. Kb1 f5 13. exf5 Nxf3 14. gxf3 Bxf5 15. Nb5 Ne5 16. Be2 Bg5 17. Be3 Bxe3 18. Qxe3 Bd7 19. Nd4 Qf6 20. Qb3 Rab8 21. Rhg1 Kh8 22. Rg3 Ng6 23. Qa3 Nf4 24. Bc4 Rfe8 25. Rgg1 a6 26. Qa5 c5 27. dxc6 bxc6 28. Qc7 Be6 29. Bb3 c5 30. Nc6 Rbc8 31. Qb7 c4 32. Ba4 Bd5 33. Rde1 Rg8 34. Qd7 Bxc6 35. Bxc6 Rb8 36. Bb7 Rgd8 37. Qe7 Qd4 38. c3 Qd3+ 39. Ka1 Ng6 40. Qg5 Qc2 41. Rg2 Qa4 42. Be4 Re8 43. Reg1 Re5 44. Qc1 Re6 45. h4 d5 46. Bc2 Qd7 47. h5 Ne5 48. Rxg7 Qxg7 49. Rxg7 Kxg7 50. Qg5+ Kh8 51. Qf5 Re7 52. Qf6+ 1-0

[Event "XV Closed IM BCC 2021"]
[Site "Barcelona"]
[Date "2021.05.04"]
[Round "2.5"]
[White "Girel, Joseph"]
[Black "Saya, Ethan"]
[Result "1-0"]
[ECO "E41"]
[WhiteElo "2310"]
[BlackElo "2230"]
[Annotator "NA"]
[PlyCount "65"]
[EventDate "2021.05.03"]
[EventType "tourn"]
[EventCountry "ESP"]
[SourceTitle "playchess.com"]
[Source "ChessBase"]
[SourceQuality "1"]
[TimeControl "5400+30"]

1. d4 {[%emt 0:00:00]} Nf6 {[%emt 0:00:00]} 2. c4 {[%emt 0:00:00]} e6 {[%emt 0:00:14]} 3. Nc3 {[%emt 0:00:08]} Bb4 {[%emt 0:00:44]} 4. e3 {[%emt 0:00:21]} c5 {[%emt 0:06:09]} 5. Nf3 {[%emt 0:02:28]} O-O {[%emt 0:03:31]} 6. Bd3 {[%emt 0:00:18]} cxd4 {[%emt 0:18:27]} 7. exd4 {[%emt 0:00:23]} d5 {[%emt 0:01:00]} 8. O-O {[%emt 0:00:30]} dxc4 {[%emt 0:03:40]} 9. Bxc4 {[%emt 0:00:03]} Bxc3 {[%emt 0:03:04]} 10. bxc3 {[%emt 0:00:03]} b6 {[%emt 0:00:41]} 11. Bd3 {[%emt 0:04:00]} Bb7 {[%emt 0:02:31]} 12. c4 {[%emt 0:05:48]} h6 {[%emt 0:04:31]} 13. Bb2 {[%emt 0:02:24]} Nc6 {[%emt 0:02:47]} 14. Rc1 {[%emt 0:03:17]} Rc8 {[%emt 0:01:38]} 15. Re1 {[%emt 0:03:05]} Ba6 {[%emt 0:15:27]} 16. Qe2 {[%emt 0:08:21]} Re8 {[%emt 0:05:11]} 17. a3 {[%emt 0:02:37]} Qc7 {[%emt 0:03:43]} 18. Qe3 {[%emt 0:04:07]} Na5 {[%emt 0:04:43]} 19. Ne5 {[%emt 0:01:02]} Qb7 {[%emt 0:01:47]} 20. Qg3 {[%emt 0:02:59]} b5 {[%emt 0:04:32]} 21. c5 {[%emt 0:02:12]} Qd5 {[%emt 0:02:18]} 22. Rcd1 {[%emt 0:02:17]} Nc4 {[%emt 0:02:37]} 23. Bc1 {[%emt 0:01:30]} Kf8 {[%emt 0:00:25]} 24. Qh4 {[%emt 0:01:55]} Bb7 {[%emt 0:04:10]} 25. Bf1 {[%emt 0:03:00]} Ke7 {[%emt 0:00:54]} 26. Nxc4 {[%emt 0:02:05]} bxc4 {[%emt 0:01:25]} 27. Re5 {[%emt 0:00:22]} Qd7 {[%emt 0:03:17]} 28. d5 {[%emt 0:00:34]} Bxd5 {[%emt 0:00:57]} 29. Rdxd5 {[%emt 0:00:24]} Qxd5 {[%emt 0:00:22]} 30. Rxd5 {[%emt 0:00:13]} exd5 {[%emt 0:00:04]} 31. Qd4 {[%emt 0:01:16]} Kf8 {[%emt 0:00:55]} 32. Bxh6 {[%emt 0:00:50]} Re4 {[%emt 0:00:42]} 33. Qxf6 {[%emt 0:00:14]} 1-0

[Event "XV Closed IM BCC 2021"]
[Site "Barcelona"]
[Date "2021.05.05"]
[Round "3.2"]
[White "Lucas, Arthur"]
[Black "Girel, Joseph"]
[Result "1/2-1/2"]
[ECO "A14"]
[WhiteElo "2310"]
[BlackElo "2310"]
[Annotator "NA"]
[PlyCount "54"]
[EventDate "2021.05.03"]
[EventType "tourn"]
[EventCountry "ESP"]
[SourceTitle "playchess.com"]
[Source "ChessBase"]
[SourceQuality "1"]
[TimeControl "5400+30"]

1. c4 {[%emt 0:00:00]} Nf6 {[%emt 0:02:59]} 2. g3 {[%emt 0:00:09]} e6 {[%emt 0:00:25]} 3. Bg2 {[%emt 0:00:18]} d5 {[%emt 0:00:13]} 4. Nf3 {[%emt 0:00:25]} Be7 {[%emt 0:00:23]} 5. O-O {[%emt 0:00:15]} O-O {[%emt 0:00:09]} 6. d4 {[%emt 0:00:48]} dxc4 {[%emt 0:00:12]} 7. Qc2 {[%emt 0:00:16]} b5 {[%emt 0:00:38]} 8. a4 {[%emt 0:00:40]} b4 {[%emt 0:00:11]} 9. Nfd2 {[%emt 0:00:27]} Nd5 {[%emt 0:00:22]} 10. Nxc4 {[%emt 0:01:07]} c5 {[%emt 0:00:20]} 11. dxc5 {[%emt 0:00:28]} Ba6 {[%emt 0:00:21]} 12. Ne3 {[%emt 0:00:46]} Nd7 {[%emt 0:01:32]} 13. Nxd5 {[%emt 0:01:08]} exd5 {[%emt 0:00:12]} 14. c6 {[%emt 0:00:16]} Rc8 {[%emt 0:00:42]} 15. Bf4 {[%emt 0:01:16]} Nc5 {[%emt 0:02:11]} 16. Rd1 {[%emt 0:02:31]} d4 {[%emt 0:00:33]} 17. Be5 {[%emt 0:08:11]} d3 {[%emt 0:15:04]} 18. exd3 {[%emt 0:00:08]} Bxd3 {[%emt 0:00:38]} 19. Qd2 {[%emt 0:01:06]} Qa5 {[%emt 0:11:48]} 20. Nc3 {[%emt 0:40:43]} bxc3 {[%emt 0:03:17]} 21. Bxc3 {[%emt 0:00:09]} Qa6 {[%emt 0:04:44]} 22. Qe3 {[%emt 0:12:29]} Rfe8 {[%emt 0:04:20]} 23. b4 {[%emt 0:07:44]} Bf8 {[%emt 0:01:23]} 24. Qf4 {[%emt 0:08:31]} Nxa4 {[%emt 0:14:03]} 25. Rxa4 {[%emt 0:04:24]} Qxa4 {[%emt 0:00:11]} 26. Rxd3 {[%emt 0:00:10]} Rxc6 {[%emt 0:02:27]} 27. Bxc6 {[%emt 0:02:16]} Qxc6 {[%emt 0:00:09]} 1/2-1/2

[Event "XV Closed IM BCC 2021"]
[Site "Barcelona"]
[Date "2021.05.05"]
[Round "3.3"]
[White "Papadiamandis, Elliot"]
[Black "Perez Mitjans, Orelvis"]
[Result "1/2-1/2"]
[ECO "B41"]
[WhiteElo "2292"]
[BlackElo "2412"]
[Annotator "NA"]
[PlyCount "50"]
[EventDate "2021.05.03"]
[EventType "tourn"]
[EventCountry "ESP"]
[SourceTitle "playchess.com"]
[Source "ChessBase"]
[SourceQuality "1"]
[TimeControl "5400+30"]

1. e4 {[%emt 0:00:00]} c5 {[%emt 0:06:08]} 2. Nf3 {[%emt 0:00:00]} e6 {[%emt 0:00:07]} 3. d4 {[%emt 0:00:14]} cxd4 {[%emt 0:00:06]} 4. Nxd4 {[%emt 0:00:30]} a6 {[%emt 0:00:07]} 5. Be2 {[%emt 0:00:57]} Nf6 {[%emt 0:00:07]} 6. Nc3 {[%emt 0:00:30]} Qc7 {[%emt 0:00:11]} 7. O-O {[%emt 0:00:38]} Be7 {[%emt 0:00:20]} 8. Be3 {[%emt 0:05:51]} O-O {[%emt 0:00:21]} 9. f4 {[%emt 0:02:01]} d6 {[%emt 0:00:06]} 10. Bf3 {[%emt 0:01:22]} Nc6 {[%emt 0:02:20]} 11. Nb3 {[%emt 0:09:58]} b5 {[%emt 0:23:06]} 12. Qd2 {[%emt 0:13:11]} Bb7 {[%emt 0:15:14]} 13. Rae1 {[%emt 0:04:46]} Rac8 {[%emt 0:01:43]} 14. Kh1 {[%emt 0:18:10]} Nd7 {[%emt 0:07:55]} 15. Qf2 {[%emt 0:05:28]} Na5 {[%emt 0:04:32]} 16. Nxa5 {[%emt 0:01:30]} Qxa5 {[%emt 0:00:05]} 17. a3 {[%emt 0:01:25]} b4 {[%emt 0:00:48]} 18. axb4 {[%emt 0:01:05]} Qxb4 {[%emt 0:00:09]} 19. Bd4 {[%emt 0:05:51]} e5 {[%emt 0:08:48]} 20. Nd5 {[%emt 0:06:24]} Bxd5 {[%emt 0:01:48]} 21. Bc3 {[%emt 0:00:25]} Qb5 {[%emt 0:07:45]} 22. exd5 {[%emt 0:00:59]} Bf6 {[%emt 0:02:58]} 23. Be2 {[%emt 0:05:17]} Qxd5 {[%emt 0:06:42]} 24. Bxa6 {[%emt 0:01:19]} Rc7 {[%emt 0:00:21]} 25. Bd3 {[%emt 0:04:35]} Nc5 1/2-1/2

[Event "XV Closed IM BCC 2021"]
[Site "Barcelona"]
[Date "2021.05.07"]
[Round "5.1"]
[White "Lucas, Arthur"]
[Black "Nottola, Adrien"]
[Result "1-0"]
[ECO "B24"]
[WhiteElo "2310"]
[BlackElo "2101"]
[Annotator "NA"]
[PlyCount "128"]
[EventDate "2021.05.03"]
[EventType "tourn"]
[EventCountry "ESP"]
[SourceTitle "playchess.com"]
[Source "ChessBase"]
[SourceQuality "1"]
[TimeControl "5400+30"]

1. e4 {[%emt 0:00:00]} c5 {[%emt 0:00:53]} 2. Nc3 {[%emt 0:00:00]} Nc6 {[%emt 0:00:07]} 3. Bb5 {[%emt 0:00:00]} Nd4 {[%emt 0:00:06]} 4. Nf3 {[%emt 0:00:00]} a6 {[%emt 0:00:07]} 5. Bd3 {[%emt 0:00:00]} g6 {[%emt 0:00:07]} 6. Rb1 {[%emt 0:00:00]} d6 {[%emt 0:16:27]} 7. b4 {[%emt 0:06:43]} Bg7 {[%emt 0:13:31]} 8. bxc5 {[%emt 0:00:55]} dxc5 {[%emt 0:00:07]} 9. Na4 {[%emt 0:01:14]} Qc7 {[%emt 0:05:45]} 10. Nb6 {[%emt 0:01:59]} Rb8 {[%emt 0:00:07]} 11. Nxd4 {[%emt 0:12:52]} cxd4 {[%emt 0:01:28]} 12. Nxc8 {[%emt 0:00:43]} Rxc8 {[%emt 0:02:08]} 13. O-O {[%emt 0:00:16]} Nf6 {[%emt 0:03:20]} 14. f4 {[%emt 0:09:38]} O-O {[%emt 0:01:44]} 15. Qf3 {[%emt 0:05:00]} Nd7 {[%emt 0:00:41]} 16. Ba3 {[%emt 0:05:43]} Rfe8 {[%emt 0:00:37]} 17. e5 {[%emt 0:04:02]} b5 {[%emt 0:09:22]} 18. Rb4 {[%emt 0:18:41]} Nc5 {[%emt 0:06:09]} 19. Rxd4 {[%emt 0:07:37]} Nxd3 {[%emt 0:00:25]} 20. cxd3 {[%emt 0:00:29]} Qb6 {[%emt 0:12:39]} 21. Qe3 {[%emt 0:06:35]} Rc2 {[%emt 0:00:34]} 22. Rd7 {[%emt 0:00:56]} Qe6 {[%emt 0:02:14]} 23. Qa7 {[%emt 0:03:37]} Bf8 {[%emt 0:00:09]} 24. Bb4 {[%emt 0:02:19]} Rxa2 {[%emt 0:03:27]} 25. d4 {[%emt 0:00:49]} Qc4 {[%emt 0:05:59]} 26. Qc5 {[%emt 0:02:24]} Rc8 {[%emt 0:01:34]} 27. Qxc4 {[%emt 0:00:46]} Rxc4 {[%emt 0:00:02]} 28. Rb1 {[%emt 0:04:03]} Ra4 {[%emt 0:02:17]} 29. Bc5 {[%emt 0:02:15]} Rc2 {[%emt 0:00:23]} 30. Rd1 {[%emt 0:01:21]} Raa2 {[%emt 0:04:29]} 31. Ra7 {[%emt 0:00:40]} a5 {[%emt 0:01:20]} 32. Rb7 {[%emt 0:03:47]} Rab2 {[%emt 0:03:08]} 33. Kf1 {[%emt 0:00:17]} a4 {[%emt 0:01:09]} 34. Ke2 {[%emt 0:00:11]} Rb3 {[%emt 0:00:07]} 35. Ra1 {[%emt 0:01:06]} Rc4 {[%emt 0:01:07]} 36. Ra2 {[%emt 0:00:21]} Kg7 {[%emt 0:01:21]} 37. Rb8 {[%emt 0:00:02]} Rc1 {[%emt 0:00:25]} 38. Ra3 {[%emt 0:01:07]} Rbb1 {[%emt 0:00:40]} 39. Kd3 {[%emt 0:00:29]} Rg1 {[%emt 0:00:35]} 40. g3 {[%emt 0:00:10]} Rg2 {[%emt 0:00:33]} 41. Ra2 {[%emt 0:00:50]} Rb3+ {[%emt 0:00:32]} 42. Ke4 {[%emt 0:00:23]} Rxh2 {[%emt 0:00:43]} 43. Kd5 {[%emt 0:00:35]} Rh1 {[%emt 0:01:44]} 44. Kc6 {[%emt 0:00:14]} Rhb1 {[%emt 0:00:05]} 45. g4 {[%emt 0:00:45]} h5 {[%emt 0:00:36]} 46. gxh5 {[%emt 0:00:14]} gxh5 {[%emt 0:00:03]} 47. f5 {[%emt 0:00:12]} Rc1 {[%emt 0:00:31]} 48. d3 {[%emt 0:01:05]} Rg1 {[%emt 0:01:48]} 49. f6+ {[%emt 0:00:32]} exf6 {[%emt 0:00:01]} 50. Bxf8+ {[%emt 0:00:15]} Kg6 {[%emt 0:00:01]} 51. Bc5 {[%emt 0:00:21]} Rg5 {[%emt 0:00:29]} 52. exf6 {[%emt 0:00:26]} Kxf6 {[%emt 0:00:45]} 53. Rxb5 {[%emt 0:00:30]} Rg8 {[%emt 0:00:58]} 54. Rf2+ {[%emt 0:00:44]} Ke6 {[%emt 0:00:01]} 55. d5+ {[%emt 0:00:37]} Ke5 {[%emt 0:00:02]} 56. d4+ {[%emt 0:00:27]} Ke4 {[%emt 0:00:05]} 57. Rxb3 {[%emt 0:00:37]} axb3 {[%emt 0:00:02]} 58. d6 {[%emt 0:00:18]} Rc8+ {[%emt 0:00:55]} 59. Kb7 {[%emt 0:00:20]} Rh8 {[%emt 0:00:36]} 60. Rb2 {[%emt 0:00:55]} h4 {[%emt 0:00:10]} 61. Rxb3 {[%emt 0:00:19]} h3 {[%emt 0:00:02]} 62. d7 {[%emt 0:00:29]} h2 {[%emt 0:00:01]} 63. Rb1 {[%emt 0:00:10]} f5 {[%emt 0:00:35]} 64. Kc7 {[%emt 0:00:28]} Kd5 1-0

[Event "XV Closed IM BCC 2021"]
[Site "Barcelona"]
[Date "2021.05.07"]
[Round "5.2"]
[White "Papadiamandis, Elliot"]
[Black "Saya, Ethan"]
[Result "1/2-1/2"]
[ECO "C07"]
[WhiteElo "2292"]
[BlackElo "2230"]
[Annotator "NA"]
[PlyCount "47"]
[EventDate "2021.05.03"]
[EventType "tourn"]
[EventCountry "ESP"]
[SourceTitle "playchess.com"]
[Source "ChessBase"]
[SourceQuality "1"]
[TimeControl "5400+30"]

1. e4 {[%emt 0:00:00]} e6 {[%emt 0:00:26]} 2. d4 {[%emt 0:00:03]} d5 {[%emt 0:00:07]} 3. Nd2 {[%emt 0:00:21]} c5 {[%emt 0:01:55]} 4. Ngf3 {[%emt 0:00:19]} cxd4 {[%emt 0:00:40]} 5. Nxd4 {[%emt 0:00:38]} Nf6 {[%emt 0:00:39]} 6. exd5 {[%emt 0:00:37]} Qxd5 {[%emt 0:00:24]} 7. Nb5 {[%emt 0:00:25]} Na6 {[%emt 0:00:23]} 8. Nc3 {[%emt 0:00:23]} Qd6 {[%emt 0:00:16]} 9. a3 {[%emt 0:01:15]} Bd7 {[%emt 0:02:20]} 10. Qe2 {[%emt 0:01:51]} Be7 {[%emt 0:32:25]} 11. b4 {[%emt 0:08:31]} O-O {[%emt 0:02:00]} 12. Bb2 {[%emt 0:00:41]} Rac8 {[%emt 0:05:36]} 13. Qf3 {[%emt 0:24:25]} Qe5+ {[%emt 0:26:48]} 14. Be2 {[%emt 0:08:43]} Bb5 {[%emt 0:06:31]} 15. Nxb5 {[%emt 0:16:31]} Qxb2 {[%emt 0:00:19]} 16. O-O {[%emt 0:00:21]} Qxc2 {[%emt 0:02:14]} 17. Nb3 {[%emt 0:03:04]} Nd5 {[%emt 0:02:29]} 18. Bd3 {[%emt 0:04:44]} Qb2 {[%emt 0:00:14]} 19. Nxa7 {[%emt 0:00:12]} Rcd8 {[%emt 0:01:22]} 20. Na5 {[%emt 0:06:56]} Rd7 {[%emt 0:02:10]} 21. Nb5 {[%emt 0:01:34]} Rfd8 {[%emt 0:01:13]} 22. Be4 {[%emt 0:02:53]} Nac7 {[%emt 0:01:36]} 23. Nc4 {[%emt 0:07:43]} Qf6 24. Qxf6 1/2-1/2

[Event "XV Closed IM BCC 2021"]
[Site "Barcelona"]
[Date "2021.05.07"]
[Round "5.3"]
[White "Alcala Gonzalez, Cesar"]
[Black "Girel, Joseph"]
[Result "1/2-1/2"]
[ECO "D31"]
[WhiteElo "2110"]
[BlackElo "2310"]
[Annotator "NA"]
[PlyCount "96"]
[EventDate "2021.05.03"]
[EventType "tourn"]
[EventCountry "ESP"]
[SourceTitle "playchess.com"]
[Source "ChessBase"]
[SourceQuality "1"]
[TimeControl "5400+30"]

1. d4 {[%emt 0:00:00]} d5 {[%emt 0:01:26]} 2. c4 {[%emt 0:00:00]} e6 {[%emt 0:00:22]} 3. Nc3 {[%emt 0:00:00]} a6 {[%emt 0:00:20]} 4. cxd5 {[%emt 0:00:20]} exd5 {[%emt 0:00:22]} 5. Qb3 {[%emt 0:00:18]} Nf6 {[%emt 0:03:45]} 6. Bg5 {[%emt 0:00:06]} c6 {[%emt 0:03:07]} 7. e4 {[%emt 0:00:32]} dxe4 {[%emt 0:03:45]} 8. Bc4 {[%emt 0:00:13]} Qe7 {[%emt 0:05:35]} 9. Bxf6 {[%emt 0:17:22]} gxf6 {[%emt 0:03:33]} 10. a4 {[%emt 0:00:22]} f5 {[%emt 0:03:55]} 11. Nge2 {[%emt 0:02:33]} Bg7 {[%emt 0:04:34]} 12. O-O {[%emt 0:03:07]} O-O {[%emt 0:00:50]} 13. f3 {[%emt 0:11:51]} Nd7 {[%emt 0:06:06]} 14. fxe4 {[%emt 0:08:39]} fxe4 {[%emt 0:00:13]} 15. a5 {[%emt 0:05:17]} Nf6 {[%emt 0:07:11]} 16. Rae1 {[%emt 0:02:08]} Be6 {[%emt 0:10:53]} 17. Bxe6 {[%emt 0:10:04]} Qxe6 {[%emt 0:02:28]} 18. Qxe6 fxe6 {[%emt 0:00:05]} 19. Nf4 {[%emt 0:08:47]} Rae8 {[%emt 0:02:06]} 20. Nxe4 {[%emt 0:01:20]} Nxe4 {[%emt 0:01:02]} 21. Rxe4 {[%emt 0:00:09]} e5 {[%emt 0:00:22]} 22. Rfe1 {[%emt 0:03:38]} Rf7 {[%emt 0:10:22]} 23. Nd3 {[%emt 0:03:57]} Rd7 {[%emt 0:01:28]} 24. Nxe5 {[%emt 0:03:54]} Rd5 {[%emt 0:00:15]} 25. b4 {[%emt 0:01:32]} Red8 {[%emt 0:01:44]} 26. Nf3 {[%emt 0:02:34]} Bxd4+ {[%emt 0:02:13]} 27. Nxd4 {[%emt 0:00:05]} Rxd4 {[%emt 0:00:07]} 28. Kf2 {[%emt 0:01:11]} Rxe4 {[%emt 0:02:12]} 29. Rxe4 {[%emt 0:00:08]} Rd5 {[%emt 0:00:06]} 30. Ke3 {[%emt 0:01:51]} c5 {[%emt 0:02:02]} 31. bxc5 {[%emt 0:00:34]} Rxc5 {[%emt 0:00:05]} 32. Re7 {[%emt 0:00:10]} Rxa5 {[%emt 0:00:25]} 33. Rxb7 {[%emt 0:00:08]} Ra2 {[%emt 0:00:20]} 34. Kf3 {[%emt 0:00:25]} Ra3+ {[%emt 0:00:07]} 35. Kf4 {[%emt 0:02:13]} Ra2 {[%emt 0:00:09]} 36. Kg3 {[%emt 0:00:10]} Ra3+ {[%emt 0:00:24]} 37. Kh4 {[%emt 0:00:36]} Ra2 {[%emt 0:00:13]} 38. Kh3 {[%emt 0:00:05]} a5 {[%emt 0:00:53]} 39. g4 {[%emt 0:00:31]} a4 {[%emt 0:00:21]} 40. Ra7 {[%emt 0:00:16]} a3 {[%emt 0:00:10]} 41. Kg3 {[%emt 0:00:45]} h6 {[%emt 0:01:40]} 42. h3 {[%emt 0:00:30]} Ra1 {[%emt 0:01:17]} 43. Kh4 {[%emt 0:00:15]} a2 {[%emt 0:00:31]} 44. Kh5 {[%emt 0:00:46]} Rh1 {[%emt 0:00:16]} 45. Rxa2 {[%emt 0:00:16]} Rxh3+ {[%emt 0:00:05]} 46. Kg6 {[%emt 0:00:08]} Kf8 {[%emt 0:00:10]} 47. Ra8+ {[%emt 0:00:53]} Ke7 {[%emt 0:00:06]} 48. Rh8 {[%emt 0:00:28]} Rh4 {[%emt 0:00:11]} 1/2-1/2